Cogmind - Beta 11.1 @@@ ROGUE MODE // 2022.12.24 @ 13:10:51 Player: ChromeKnight Result: Self-destructed Performance ------------- Evolutions (1) 500 Regions Visited (3) 600 Robots Destroyed (12) 60 Value Destroyed (404) 404 Prototype IDs (0) 0 Alien Tech Used (0) 0 Bonus (107) 107 TOTAL SCORE: 1671 Bonus ------- Follower Combat Kills 107 Cogmind --------- Core Integrity 400/400 Matter 300/300 Energy 450/450 System Corruption 0% Temperature Cool (0) Movement Walking (120) Location -9/Materials Parts ------- > --- POWER (2) -------- Deuterium Engine Deuterium Engine > --- PROPULSION (2) --- Carbon-fiber Leg Carbon-fiber Leg > --- UTILITY (3) ------ Improved Heat Sink Improved Heat Sink Small Storage Unit > --- WEAPON (2) ------- Beamcaster > --- INVENTORY (8) ---- Deuterium Engine Deuterium Engine Aluminum Leg Aluminum Leg Medium Armor Plating Medium Armor Plating Shock Rifle Shock Rifle Peak State ------------ > --- POWER ------------ Deuterium Engine Deuterium Engine > --- PROPULSION ------- Carbon-fiber Leg Carbon-fiber Leg > --- UTILITY ---------- Improved Heat Sink Improved Heat Sink Small Storage Unit > --- WEAPON ----------- Beamcaster > --- INVENTORY -------- Aluminum Leg Aluminum Leg Aluminum Leg Improved Heat Sink Light Armor Plating Light Armor Plating Spread Laser Spread Laser [Rating: 25] Favorites ----------- Power Light Nuclear Core Engine Deuterium Engine Power Core Light Nuclear Core Propulsion Carbon-fiber Leg Leg Carbon-fiber Leg Utility Small Storage Unit Device Improved Heat Sink Storage Small Storage Unit Weapon Beamcaster Energy Gun Beamcaster Ballistic Gun Assault Rifle Build | -11 -10 -10 -9 ------- Run | Scr Mat Min Mat Slots Evolved 2 | . . . 2 Power 1 | . . . 1 Propulsion . | . . . . Utility 1 | . . . 1 Weapon . | . . . . Parts Attached 19 | 6 3 5 5 Power 6 | 1 1 . 4 Engine 5 | 1 . . 4 Core 1 | . 1 . . Reactor . | . . . . Propulsion 5 | 2 1 2 . Treads . | . . . . Leg 5 | 2 1 2 . Wheel . | . . . . Hover . | . . . . Flight . | . . . . Utility 4 | 1 1 1 1 Device 3 | . 1 1 1 Storage 1 | 1 . . . Processor . | . . . . Hackware . | . . . . Protection . | . . . . Artifact . | . . . . Weapon 4 | 2 . 2 . Energy Gun 3 | 1 . 2 . Energy Cannon . | . . . . Ballistic Gun 1 | 1 . . . Ballistic Cannon . | . . . . Launcher . | . . . . Special Weapon . | . . . . Impact Weapon . | . . . . Slashing Weapon . | . . . . Piercing Weapon . | . . . . Special Melee Weapon . | . . . . Unidentified Prototypes . | . . . . Parts Lost . | . . . . Power . | . . . . Propulsion . | . . . . Utility . | . . . . Weapon . | . . . . Highest Loss Streak . | . . . . To Critical Strikes . | . . . . Average Slot Usage (%) 90 | . 92 92 86 Engine 6 | . 10 . 13 Core 9 | . 3 14 6 Leg 26 | . 28 28 22 Device 14 | . 7 14 22 Storage 13 | . 14 14 11 Energy Gun 15 | . 14 20 11 Ballistic Gun 3 | . 14 . . Naked Turns . | . . . . Heaviest Build 30 | 11 14 16 30 Greatest Support 30 | 20 20 30 30 Greatest Overweight (x) . | . . . . Average Overweight (x) . | . . . . Largest Inventory Capacity 8 | 8 8 8 8 Average Capacity 7 | 7 8 8 8 Most Carried 8 | 2 8 8 8 Average Carried 6 | . 4 7 7 Final Capacity 8 | 8 8 8 8 Final Carried 8 | 1 8 8 8 Class Distribution -------------------- 50% | Scavenger-Mutant 49% | Mutant Dominant Class ---------------- Mutant | -10/Materials Mutant | -10/Mines Scavenger-Mutant | -9/Materials Resources | -11 -10 -10 -9 ----------- Run | Scr Mat Min Mat Matter Collected 450 | 250 87 63 50 Remotely . | . . . . Salvage Created 446 | . 129 88 229 Parts 28 | . 7 3 18 Haulers Intercepted . | . . . . Recyclers Shooed . | . . . . Parts Field Recycled . | . . . . Retrieved Matter . | . . . . Parts Self-Destructed . | . . . . Prevented . | . . . . Kills | -11 -10 -10 -9 ------- Run | Scr Mat Min Mat Combat Hostiles Destroyed 12 | . 3 2 7 Guns 12 | . 3 2 7 Classes Destroyed 3 | . 1 . 2 Swarmer 3 | . . . 3 Grunt 7 | . 3 2 2 Sentry 2 | . . . 2 Best Kill Streak 2 | . 1 2 2 Combat Bots Only 2 | . 1 2 2 Max Kills in Single Turn 1 | . 1 1 1 Gunslinging . | . . . . Exploded . | . . . . Melee . | . . . . Uniques/NPCs Destroyed . | . . . . Combat | -11 -10 -10 -9 -------- Run | Scr Mat Min Mat Damage Taken 450 | . 216 96 138 Core 60 | . 60 . . Absorbed by Shields . | . . . . Core Remaining (%) 88 | 100 . 76 . Volleys Fired 53 | 1 19 9 24 Largest 2 | 2 2 2 1 Hottest 90 | 60 60 90 75 Shots Fired 82 | 2 38 18 24 Gun 82 | 2 38 18 24 Cannon . | . . . . Launcher . | . . . . Special . | . . . . Kinetic 20 | 1 19 . . Thermal 62 | 1 19 18 24 Explosive . | . . . . Electromagnetic . | . . . . Robot Hit Streak 21 | . 21 9 11 Robot Miss Streak 2 | 2 2 2 2 Penetration Max . | . . . . Secondary Targets 1 | . . 1 . Max Gunslinging Chain 1 | . . 1 . Shots Hit Robots 59 | . 29 14 16 Core Hits 19 | . 8 4 7 Critical Kills . | . . . . Critical Parts Destroyed . | . . . . Critical Strikes 2 | . . . 2 Burn 2 | . . . 2 Melee Attacks . | . . . . Impact . | . . . . Slashing . | . . . . Piercing . | . . . . Sneak Attacks . | . . . . Combat Hostiles . | . . . . Follow-up Attacks . | . . . . Damage Inflicted 916 | . 370 169 377 Guns 916 | . 370 169 377 Cannons . | . . . . Explosions . | . . . . Melee . | . . . . Ramming . | . . . . Kinetic 197 | . 197 . . Thermal 719 | . 173 169 377 Explosive . | . . . . Electromagnetic . | . . . . Impact . | . . . . Slashing . | . . . . Piercing . | . . . . Highest Corruption . | . . . . Average Corruption . | . . . . Corruption Purged . | . . . . Corruption Blocked . | . . . . Overload Shots . | . . . . Overflow Damage . | . . . . Projectiles . | . . . . Explosions . | . . . . Melee . | . . . . Knockbacks . | . . . . Impact . | . . . . Kinetic . | . . . . Secondary . | . . . . Self-Inflicted Damage . | . . . . Shots . | . . . . Rammed . | . . . . Targets Rammed . | . . . . Kicked . | . . . . Crushed . | . . . . Highest Temperature 84 | . 12 84 20 Average Temperature 25 | . 8 36 9 Received Heat Transfer 237 | . 120 69 48 Siege Activations . | . . . . Robots Corrupted . | . . . . Combat Hostiles . | . . . . Parts Fried . | . . . . Impact Corruptions . | . . . . Robots Melted . | . . . . Combat Hostiles . | . . . . Parts Melted 2 | . . 1 1 Heat Transferred 1598 | . 375 446 777 Parts Sabotaged . | . . . . Parts Stolen . | . . . . Parts Stripped . | . . . . Power Chain Reactions . | . . . . Missiles Intercepted . | . . . . Alert | -11 -10 -10 -9 ------- Run | Scr Mat Min Mat Peak Influence 375 | . 156 181 375 Initial 60 | . . 60 . Average 132 | . 74 108 236 Maximum Alert Level 1 | . . . 1 Low Security (%) 80 | 100 100 100 34 Level 1 19 | . . . 65 Level 2 . | . . . . Level 3 . | . . . . Level 4 . | . . . . Level 5 . | . . . . High Security . | . . . . Max Security . | . . . . Squads Dispatched 1 | . . . 1 Investigation 1 | . . . 1 Extermination . | . . . . Reinforcement . | . . . . Assault . | . . . . Garrison . | . . . . Intercept . | . . . . Searches Triggered . | . . . . Construction Impeded . | . . . . Haulers Reinforced . | . . . . Active Scanning Responses . | . . . . Cargo Convoy Interrupts . | . . . . Stealth | -11 -10 -10 -9 --------- Run | Scr Mat Min Mat Distress Signals 3 | . 1 . 2 Communications Jammed . | . . . . Distress Signals . | . . . . Times Spotted 26 | . 8 5 13 Peak Tracking Total 4 | . 4 3 4 Tactical Retreats 2 | . 2 . . Traps | -11 -10 -10 -9 ------- Run | Scr Mat Min Mat Traps Triggered . | . . . . Indirectly . | . . . . Trap Hack Attempts . | . . . . Triggered . | . . . . Disarmed . | . . . . Reprogrammed . | . . . . Reused . | . . . . Traps Extracted . | . . . . Installed . | . . . . Triggered . | . . . . Machines | -11 -10 -10 -9 ---------- Run | Scr Mat Min Mat Machines Disabled 2 | . . 1 1 Max in Single Turn . | . . . . Machines Sabotaged . | . . . . Garrisons Compromised . | . . . . Overloaded Fab Kills . | . . . . Hacking | -11 -10 -10 -9 --------- Run | Scr Mat Min Mat Machines Accessed 1 | . 1 . . Terminals 1 | . 1 . . Fabricators . | . . . . Repair Stations . | . . . . Recycling Units . | . . . . Scanalyzers . | . . . . Garrison Access . | . . . . Total Hacks 9 | . 9 . . Successful 5 | . 5 . . Failed 4 | . 4 . . Catastrophic . | . . . . Database Lockouts . | . . . . Manual 9 | . 9 . . Terminals 9 | . 9 . . Fabricators . | . . . . Repair Stations . | . . . . Recycling Units . | . . . . Scanalyzers . | . . . . Garrison Access . | . . . . Terminal Hacks 2 | . 2 . . Robot Analysis 2 | . 2 . . Fabricator Hacks . | . . . . Repair Station Hacks . | . . . . Recycling Unit Hacks . | . . . . Scanalyzer . | . . . . Garrison Access Hacks . | . . . . Unauthorized Hacks 3 | . 3 . . Terminals 3 | . 3 . . Track 1 | . 1 . . Botnet 1 | . 1 . . Operators 1 | . 1 . . Fabricators . | . . . . Repair Stations . | . . . . Recycling Units . | . . . . Scanalyzers . | . . . . Garrison Access . | . . . . Data Cores Recovered . | . . . . Used . | . . . . Hacking Detections 1 | . 1 . . Full Trace Events . | . . . . Feedback Events . | . . . . Feedback Blocked . | . . . . Robot Schematics Acquired . | . . . . Robots Built . | . . . . Authchips . | . . . . Time . | . . . . Total Robot Build Rating . | . . . . Part Schematics Acquired . | . . . . Parts Built . | . . . . Authchips . | . . . . Time . | . . . . Total Part Build Rating . | . . . . Parts Repaired . | . . . . Time . | . . . . Parts Recycled . | . . . . Recycled Matter . | . . . . Retrieved Matter . | . . . . Retrieved Components . | . . . . Parts Scanalyzed . | . . . . Part Schematics Acquired . | . . . . Parts Damaged . | . . . . Bothacking | -11 -10 -10 -9 ------------ Run | Scr Mat Min Mat Used RIF Installer . | . . . . Robots Hacked . | . . . . Non-combat . | . . . . Combat . | . . . . Robot Hacks Applied . | . . . . Relay Couplers Released . | . . . . Fabnet Peak Effective % . | . . . . Robots Rewired . | . . . . Allies Hacked . | . . . . Hacks Repelled . | . . . . Allies | -11 -10 -10 -9 -------- Run | Scr Mat Min Mat Total Allies 4 | . . 4 . Largest Group 4 | . . 4 2 Highest-Rated Group 71 | . . 71 32 Highest-Rated Ally 31 | . . 31 16 Total Orders 2 | . . 2 . STAY 1 | . . 1 . FOLLOW 1 | . . 1 . Ally Attacks 42 | . . 16 26 Total Damage 443 | . . 233 210 Kills 9 | . . 3 6 Allies Corrupted . | . . . . Allies Melted . | . . . . Intel | -11 -10 -10 -9 ------- Run | Scr Mat Min Mat Robot Analysis Total 2 | . 2 . . Derelict Logs Recovered 1 | . . 1 . Drone Launches . | . . . . Drone Recoveries . | . . . . Exploration | -11 -10 -10 -9 ------------- Run | Scr Mat Min Mat Turns Passed 1246 | 63 296 518 369 Spaces Moved 822 | 46 174 373 229 Core 7 | 7 . . . Treads . | . . . . Legs 815 | 39 174 373 229 Wheels . | . . . . Hover . | . . . . Flight . | . . . . Fastest Speed 50 | 50 120 120 120 Average Speed 119 | 109 120 120 120 Slowest Speed 120 | 120 120 120 120 Overloaded Moves . | . . . . Propulsion Burnouts . | . . . . Robots Hopped . | . . . . Cave-ins Triggered . | . . . . Exploration Rate (%) 35 | 4 45 74 17 Regions Visited 3 Branch Regions 1 Pre-discovered Areas . | . . . . Known Exits Taken . | . . . . Unknown Exits Taken 3 | 1 1 1 . Scrap Searched 1 | . . 1 . Spaces Dug . | . . . . Terrain Destroyed . | . . . . Melee . | . . . . Projectile . | . . . . AOE . | . . . . Terrain Rammed . | . . . . Walls Destroyed . | . . . . Machines Disabled . | . . . . Actions | -11 -10 -10 -9 --------- Run | Scr Mat Min Mat Total 1012 | 54 222 428 308 Wait 75 | . 20 31 24 Move 819 | 45 173 372 229 Hop . | . . . . Pick Up 23 | 2 6 3 12 Fast Attach 12 | 5 2 2 3 Attach 3 | 1 . 1 1 Detach . | . . . . Swap 4 | . 1 2 1 Drop 23 | . 1 8 14 Fire 53 | 1 19 9 24 Melee . | . . . . Ram . | . . . . Kick . | . . . . Crush . | . . . . Escape Stasis . | . . . . Rewire . | . . . . Trap . | . . . . Miscellaneous . | . . . . Route ------- -11/Scrapyard -10/Materials (discovered 2 exits: [*Mat] / [*Min]) -10/Mines -9/Materials History --------- Turn | Location | Event 6 | -11/Scrapyard | Discovered new exit (range 15) 64 | -11/Scrapyard | Entered Materials 255 | -10/Materials | Discovered new exit (range 5) 308 | -10/Materials | Build established: Mutant 326 | -10/Materials | Discovered new exit (range 15) 360 | -10/Materials | Entered Mines 375 | -10/Mines | Received a Mining Laser from a helpful Derelict 500 | -10/Mines | Assisted by bots powering up and referring to "LRC-V3" 579 | -10/Mines | Learned Materials terminal intel 747 | -10/Mines | Discovered new exit (range 9) 764 | -10/Mines | Found a hidden stash of uninstalled traps 878 | -10/Mines | Entered Materials 878 | -9/Materials | Accompanied by 2 allies 878 | -9/Materials | Evolved 2 slots: Power x1, Utility x1 879 | -9/Materials | Loaded intel: 12 terminal locations 919 | -9/Materials | Build established: Scavenger-Mutant 1247 | -9/Materials | Self-destructed Last Messages --------------- 01114_ Dropped Spread Laser. 01115_ Dropped Aluminum Leg. 01115_ Acquired Deuterium Engine. 01119_ Acquired Shock Rifle. 01127_ G-34 Mercenary destroyed. 01134_ Acquired 20 matter. 01137_ W-16 Scout sends out distress signal. 01164_ Critical hit (Burn: +37). 01169_ Heat Sink melted. 01169_ Y-45 Defender destroyed. 01200_ Dropped Lgt. Armor Plating. 01200_ Acquired Med. Armor Plating. 01208_ Dropped Lgt. Armor Plating. 01208_ Acquired Med. Armor Plating. 01218_ W-16 Scout sends out distress signal. 01225_ Destroyed Lgt. Ion Engine. 01227_ W-16 Scout suffers critical hit (Burn). 01244_ G-34 Mercenary destroyed. 01244_ R-06 Scavenger collects Heat Sink. 01246_ K-01 Serf collects debris. Map ----- +----------------------------------------------------+ | ?????????????????????????????????????? | | ?????????????????????????????????????? | | ?????"""?????????????????????????????? | | ?????"T"?????????????????????????????? | | ?????????????????????????????????????? | | ?????????????????????????????????????? | | ?????????????????????????????????????? | | ?????????????????????????????????????? | | ?????????????????????????????????????? | | ?????????????????????????????????????? | | ?????????????????????????????????T???? | | ?????????????????????????????????????? | | ?????????????????????????????????????? | | ?????????????????????????????????????? | | ?????????????????????????????????????? | | ?????????????????????????????????????? | | ?????????????????????????????????????? | | ?????????????????????????????????????? | | ?????????????????????????????????????? | | ?????????????????????????????????????? | | ?????????????????????????????????????? | | ?????????????????????????????????????? | | ???????????????###########???????????? | | ???????????????# #???????????? | | ???????# ####### #???????????? | | ???????# a r@*k #???????????? | | ???????####### # #???????????? | | ??????######## #####+########????????? | | ??????# ! + ????????? | | ??????# ! # ???????? | | ??????# """ # ???????? | | ??????# """ + ???????? | | ??????# """ !# #############?????????? | | ??????# # #?????????????????????? | | ??????##### ## #?????????????????????? | | ??????????#### #?????????????????????? | | ?????????????# #?????????????????????? | | ?????????????#=#?????????????????????? | | ?????????????#%#?????????????????????? | | ?????????????#*#?????????????????????? | | ?????????????#%#?????????????????????? | | ?######+##???#!#?????????????????????? | | ?#== #####%#???????######????????? | | ?#== [%%=*#???#??? #????????? | | ?#= [ #######???# """ #????????? | | ?#![*## ##?????????# """ #????????? | | ?#[ *## #########??# """ #????????? | | ?#[ ## ## #??# #????????? | | ?###### ## ! #??# """ #????????? | | ####### ## """ #??# """ #????????? | +----------------------------------------------------+ Best States ------------- Heat Dissipation 56 Energy Generation 23 Energy Capacity 450 Matter Stores 300 Matter Capacity 300 Sight Range 16 Terrain Scan Density 10 Evasion (%) 55 Item Schematics ----------------- None Robot Schematics ------------------ None Fabricated ------------ Nothing Alien Tech Used ----------------- None Achievements -------------- None Challenges ------------ None Game ------ Seed StormBombComputer Manual? 0 Play Time 00:18:40 Cumulative 364.9 hours Start 2022.12.23 @ 15:16:23 End 2022.12.24 @ 13:10:51 Sessions 5 Manual Loads 0 Difficulty Rogue Special Mode None Game No. 642 Rogue 487 Adventurer 148 Explorer 7 Win Type - Total 13 Types 11/0/1/1/0/0/0/0/0 Lore% 76 Gallery% 88 Achievement% 68 Wizard Run 0 Options --------- ASCII 0 Keyboard 0 Movement Numpad Keybinds 0 Fullscreen 2 Font 18/SmallcapsGlow Map View 76x50 Tactical HUD 1 Map Filters NONE Filters NONE Steam 1 RUN: bf19975a-048c-4614-a434-8b266d7f423f